bitfinex/quotes_ETHUSD_20250814
["timestamp","ask_amount","ask_price","bid_price","bid_amount"]
[1755175362963,0.32083563,4609.6,4606.8,0.1088]
[1755175363107,0.32083563,4609.6,4600.3,5.04690124]
[1755175363108,0.32083563,4609.6,4606.9,2.170653]
[1755175363313,0.32083563,4609.6,4605.9,0.650591]
[1755175363314,0.1088,4607.0,4606.1,0.1088]
[1755175363636,0.1088,4607.0,4605.9,0.650591]
[1755175363637,0.1088,4606.6,4606.0,6.506]
[1755175363806,2.343,4608.6,4606.2,5.37132978]
[1755175364006,0.1088,4606.3,4606.2,0.0008]
[1755175364208,0.1088,4606.3,4605.3,0.650882]
[1755175364452,5.205,4608.4,4603.9,0.0017]
[1755175364453,0.4662,4606.6,4603.9,0.0017]
[1755175364684,3.0,4607.3,4603.9,0.0108745]
[1755175364898,17.95931602,4607.4,4603.6,0.651129]
[1755175364899,0.1088,4605.8,4603.6,0.651129]
[1755175365054,0.02714028,4605.7,4602.6,2.17266856]
[1755175365252,0.02713792,4606.1,4602.7,0.21726686]
[1755175365547,11.709,4606.2,4601.8,0.01089597]
[1755175365749,0.02713851,4606.0,4601.8,0.01089597]
[1755175365949,2.17121774,4605.8,4601.8,0.01089597]
[1755175366250,0.01626578,4605.7,4601.9,9.66089742]
[1755175366447,2.343,4605.6,4602.1,2.17292105]
[1755175366807,0.4662,4605.5,4602.2,1.82671343]
[1755175367088,0.01626578,4605.4,4602.3,0.2011012]
[1755175367244,0.01626578,4605.4,4602.2,1.60356939]
[1755175367245,2.343,4605.4,4602.4,0.22282899]
[1755175367450,0.40270312,4605.4,4602.5,0.2011012]
[1755175367686,5.204,4606.3,4602.7,3.0]
[1755175367889,0.55058845,4608.4,4602.8,1.29622991]
[1755175367890,0.4662,4607.3,4602.8,1.29622991]
[1755175368191,17.95931602,4608.4,4604.7,2.17168111]
[1755175368192,5.204,4608.2,4604.7,2.17168111]
[1755175368484,0.55058845,4609.3,4604.8,3.49051646]
[1755175368686,0.01626578,4609.2,4605.0,5.17155266]
[1755175368850,0.01626578,4609.2,4605.2,3.0]
[1755175369056,0.01626578,4609.2,4605.3,0.4686]
[1755175369490,0.01626578,4609.2,4603.9,2.17205794]
[1755175369491,2.17012634,4608.1,4603.1,2.8062]
[1755175369652,2.90148151,4608.7,4603.1,2.8062]
[1755175369653,3.0,4607.4,4603.2,3.0]
[1755175369848,3.0,4607.2,4603.3,0.58062]
[1755175370052,4.357142,4607.3,4603.1,2.8062]
[1755175370053,3.0,4607.0,4603.2,0.02172401]
[1755175370262,0.35366578,4606.9,4603.1,2.82792449]
[1755175370467,2.343,4606.8,4603.2,3.0]
[1755175370690,0.35366578,4606.7,4603.3,0.22302148]
[1755175370892,3.35366578,4606.7,4603.4,0.20129794]
[1755175371215,3.35366578,4606.7,4603.3,0.02172354]
[1755175371415,0.78673384,4606.6,4603.4,2.7548341]
[1755175371718,0.01626578,4606.5,4603.4,0.58253235]
[1755175372118,0.3374,4606.4,4603.4,0.58253235]
[1755175372336,3.01626578,4606.3,4603.1,2.8036]
[1755175372498,5.49656578,4606.3,4603.1,2.8036]
[1755175372679,2.5083899,4606.2,4603.1,2.8036]
[1755175373021,0.01626578,4606.1,4603.1,2.8036]
[1755175373222,0.01626578,4606.1,4603.2,3.0]
[1755175373388,0.01626578,4606.1,4603.3,0.78178187]
[1755175373578,2.17084996,4606.5,4603.3,0.58036]
[1755175373783,2.48540142,4606.4,4603.4,0.4734]
[1755175374012,2.48540142,4606.4,4603.4,0.4742]
[1755175374219,0.00510142,4606.8,4603.5,3.0973259]
[1755175374516,0.00510142,4606.8,4603.6,3.0]
[1755175374723,0.00510142,4606.8,4603.6,5.17221209]
[1755175375021,0.00510142,4606.8,4603.7,0.4734]
[1755175375220,2.4803,4607.6,4603.8,3.20139892]
[1755175375408,0.00510142,4607.5,4603.9,3.06471852]
[1755175375614,0.00510142,4607.5,4604.0,0.67479781]
[1755175375785,2.46869245,4607.5,4604.1,5.39509393]
[1755175375980,2.17042989,4607.4,4604.2,4.3250672]
[1755175376210,0.00510142,4607.3,4604.2,1.12366939]
[1755175376427,5.46361592,4607.5,4604.4,3.0]
[1755175376428,0.2932,4607.5,4604.4,3.0]
[1755175376733,0.1088,4605.2,4605.1,2.1715055]
[1755175376885,0.108,4605.2,4605.1,5.03122055]
[1755175377083,3.44216153,4609.7,4605.1,3.55828014]
[1755175377282,3.44216153,4609.7,4605.1,4.56142055]
[1755175377283,0.1088,4605.2,4605.1,4.56142055]
[1755175377522,3.44216153,4609.7,4605.1,4.56142055]
[1755175377523,2.16988619,4608.6,4605.1,2.56950727]
[1755175377721,3.44216153,4609.7,4605.1,2.56950727]
[1755175377722,2.16982484,4608.7,4605.2,0.22302185]
[1755175377895,0.002,4607.8,4605.3,0.46042945]
[1755175378102,0.002,4607.8,4605.4,3.06462091]
[1755175378312,0.002,4607.8,4605.5,0.67470727]
[1755175378629,0.002,4607.8,4605.6,0.20130727]
[1755175378925,0.002,4607.8,4605.7,0.20130727]
[1755175379122,0.002,4607.8,4605.8,0.20130727]
[1755175379286,0.002,4607.8,4605.9,0.20130727]
[1755175379487,0.002,4607.8,4605.5,0.650942]
[1755175379694,0.002,4607.8,4605.6,0.2011363]
[1755175380041,0.002,4607.8,4605.7,0.2011363]
[1755175380203,0.002,4607.8,4605.8,0.2011363]
[1755175380384,0.002,4607.8,4605.9,0.2011363]
[1755175380590,0.002,4607.8,4606.0,0.6745363]
[1755175380810,0.002,4607.8,4606.1,0.2011363]
[1755175381111,0.002,4607.8,4606.2,2.5693363]
[1755175381322,0.002,4607.8,4606.3,0.50540993]
[1755175381520,0.002,4607.8,4606.4,0.2011363]
[1755175381720,0.002,4607.8,4606.4,0.2805363]
[1755175382628,0.002,4607.8,4606.5,5.22570845]
[1755175382824,0.002,4607.8,4606.9,2.17065181]
[1755175383012,0.002,4607.8,4607.1,3.0]
[1755175383216,0.002,4607.8,4607.2,2.38990515]
[1755175383426,0.002,4607.8,4607.7,2.17028018]
[1755175383728,0.002,4607.8,4607.7,7.56018298]
[1755175383946,0.002,4607.8,4607.7,7.73648018]
[1755175384243,0.002,4608.2,4607.9,2.17016582]
[1755175384399,1e-08,4608.2,4608.1,2.17009179]
[1755175384590,1e-08,4608.2,4608.1,7.7553927]
[1755175384792,1e-08,4608.2,4608.1,7.73369179]
[1755175385330,0.2005,4612.1,4609.4,2.16945738]
[1755175385504,0.002,4612.5,4609.6,3.0]
[1755175385710,0.002,4612.5,4609.8,3.0]
[1755175385919,0.002,4612.5,4609.9,0.2105]
[1755175386123,0.002,4612.5,4609.9,0.23219244]
[1755175386301,0.002,4612.5,4610.1,3.0]
[1755175386510,0.002,4612.5,4610.3,3.0]
[1755175386690,0.002,4612.5,4610.5,3.0]
[1755175386913,0.002,4612.5,4612.3,2.16808619]
[1755175387203,0.002,4612.5,4612.4,6.503]
[1755175387410,0.002,4612.5,4610.5,0.2338]
[1755175387607,0.002,4612.5,4610.9,2.16877399]
[1755175387905,0.002,4612.5,4611.0,6.503]
[1755175388106,0.002,4612.5,4610.8,2.3682]
[1755175388310,0.002,4612.5,4611.1,6.503]
[1755175388618,0.002,4612.5,4611.2,3.0]
[1755175389383,0.002,4612.5,4611.3,2.16858586]
[1755175389510,0.002,4612.5,4611.2,3.0]
[1755175389696,0.002,4612.5,4611.3,2.62198585]
[1755175389895,0.002,4612.5,4612.4,2.16806868]
[1755175390156,0.002,4613.1,4612.9,2.16783368]
[1755175390439,0.002,4613.1,4612.4,12.132]
[1755175390440,0.002,4613.5,4613.1,3.0]
[1755175390744,0.002,4613.5,4611.6,3.4697]
[1755175390903,0.002,4613.5,4611.6,5.63813935]
[1755175391221,0.002,4613.5,4612.6,2.16795995]
[1755175391561,0.002,4613.5,4613.4,2.16759873]
[1755175391841,0.002,4613.5,4613.4,8.02327471]
[1755175392051,0.002,4613.5,4613.4,5.834]
[1755175392198,0.002,4613.5,4613.4,5.3682]
[1755175392644,0.002,4613.5,4613.3,5.199]
[1755175392936,0.002,4613.5,4613.3,7.5672]
[1755175393109,0.002,4613.5,4613.4,2.79207598]
[1755175393296,0.002,4613.6,4613.5,3.0]
[1755175393532,0.002,4613.6,4613.5,11.8672]
[1755175393719,0.002,4613.6,4613.5,12.2907]
[1755175393924,0.002,4613.6,4613.5,14.45825175]
[1755175394496,0.03925442,4616.1,4613.7,2.16745778]
[1755175394823,0.03925442,4616.1,4613.5,9.2915]
[1755175394824,0.03925442,4616.1,4614.6,3.0]
[1755175395024,0.03925442,4616.1,4615.1,3.0]
[1755175395199,0.03925442,4616.1,4616.0,2.16637781]
[1755175395400,0.03925442,4616.1,4616.0,13.09724158]
[1755175395614,0.03925442,4616.1,4616.0,13.07557781]
[1755175395812,0.03925442,4616.1,4616.0,19.57257781]
[1755175396018,0.2005,4621.0,4616.1,3.0]
[1755175396213,0.2005,4621.5,4616.4,17.95778708]
[1755175396524,0.2005,4622.2,4616.8,2.16600242]
[1755175396726,17.95778708,4621.4,4616.9,3.31500267]
[1755175397052,0.93897523,4621.3,4617.0,9.4621]
[1755175397346,0.93897523,4621.3,4617.2,3.0]
[1755175397545,2.16284371,4623.6,4617.4,5.16572096]
[1755175397775,0.108,4617.8,4617.6,5.16562716]
[1755175397913,0.108,4618.3,4617.7,2.3682]
[1755175398113,0.108,4618.3,4618.1,2.16538472]
[1755175398360,2.16255223,4624.2,4617.4,2.3682]
[1755175398361,0.2005,4620.2,4617.4,2.3682]
[1755175398563,17.95778708,4621.1,4617.5,6.493]
[1755175398564,0.2005,4620.1,4617.5,6.493]
[1755175398943,0.108,4617.6,4617.5,6.493]
[1755175399252,17.95778708,4621.1,4617.5,6.493]
[1755175399253,0.002,4622.3,4617.7,2.16554647]
[1755175399455,0.108,4618.7,4618.3,2.1652918]
[1755175399639,0.108,4618.7,4618.5,5.16518385]
[1755175399810,0.2005,4621.0,4618.6,6.493]
[1755175400210,0.108,4618.7,4618.6,6.493]
[1755175400446,0.108,4618.7,4618.6,12.1881]
[1755175400658,0.108,4618.7,4618.6,14.35325827]
[1755175400862,0.002,4622.3,4618.6,14.35325827]
[1755175400863,0.4199,4621.8,4618.7,5.16509353]
[1755175401065,0.002,4622.3,4618.8,0.34855064]
[1755175401266,0.002,4622.3,4619.0,2.16497077]
[1755175401416,0.002,4622.3,4619.4,3.0]
[1755175401616,0.002,4622.3,4619.6,3.0]
[1755175401903,0.002,4622.3,4619.8,3.0]
[1755175402020,0.002,4622.3,4619.9,6.491]
[1755175402214,0.4199,4622.2,4620.0,3.0]
[1755175402414,0.002,4622.3,4620.1,0.48964455]
[1755175402618,0.002,4622.3,4620.0,3.0]
[1755175402861,0.002,4622.3,4619.1,2.8587]
[1755175403019,0.002,4622.3,4619.6,4.55537771]
[1755175403350,0.002,4622.3,4619.7,9.3497]
[1755175403556,0.002,4622.3,4620.4,2.164314]
[1755175403864,0.002,4622.3,4620.6,5.16418753]
[1755175404149,0.002,4622.3,4620.5,2.8587]
[1755175404312,0.002,4622.3,4620.5,2.3907]
[1755175404536,0.002,4622.3,4620.7,3.0]
[1755175404748,0.002,4622.3,4620.9,3.0]
[1755175404988,0.002,4622.3,4621.0,0.02164033]
[1755175405132,0.002,4622.3,4621.1,6.489]
[1755175405332,0.002,4622.3,4620.7,0.0008]
[1755175405572,0.4219,4622.3,4620.8,6.489]
[1755175405839,0.4219,4622.3,4620.7,0.0008]
[1755175406349,0.4219,4622.3,4620.7,0.02244174]
[1755175406673,0.4199,4622.2,4620.8,6.489]
[1755175407034,0.4199,4622.2,4620.9,6.487]
[1755175407571,0.002,4622.3,4621.0,3.0]
[1755175407878,0.002,4622.3,4621.1,6.487]
[1755175407879,0.4199,4622.2,4621.1,6.487]
[1755175408374,0.4199,4622.2,4620.7,0.0008]
[1755175408741,0.1401,4622.1,4620.7,0.0008]
[1755175408943,0.002,4622.3,4620.8,5.71806566]
[1755175409275,0.002,4622.3,4622.0,0.501]
[1755175409483,0.002,4622.3,4622.0,6.988]
[1755175409870,0.4219,4622.3,4622.0,6.988]
[1755175410258,0.4199,4622.2,4622.0,6.988]
[1755175410463,0.4199,4622.1,4622.0,0.501]
[1755175410949,0.002,4622.3,4622.0,0.501]
[1755175411149,0.4219,4622.3,4622.0,0.501]
[1755175411450,0.002,4622.3,4622.0,0.501]
[1755175411645,0.002,4622.3,4622.1,6.486]
[1755175411845,0.002,4622.3,4622.2,3.0]
[1755175412883,0.002,4622.3,4621.9,6.486]
[1755175413585,0.002,4622.3,4621.9,8.8767]
[1755175413789,0.002,4622.3,4622.0,2.8587]
[1755175413989,0.002,4622.3,4622.1,5.3907]
[1755175414155,0.002,4622.3,4622.0,3.0]
[1755175414891,0.002,4622.3,4622.1,2.3907]
[1755175415091,0.002,4622.3,4622.2,6.485]
[1755175415758,0.002,4622.3,4622.2,12.3437]
[1755175415956,0.002,4622.3,4622.1,0.0008]
[1755175416276,0.002,4622.3,4622.2,9.484]
[1755175416472,0.002,4622.3,4622.2,6.484]
[1755175416789,0.002,4622.3,4622.1,0.0008]
[1755175416987,0.002,4622.3,4621.7,6.484]
[1755175417204,0.4194,4623.7,4621.7,6.484]
[1755175417515,0.4194,4623.7,4621.8,3.0]
[1755175417674,2.16262975,4624.0,4621.7,0.086494]
[1755175417853,0.14,4623.9,4621.7,6.570494]
[1755175418210,3.0,4623.6,4616.4,17.95778708]
[1755175418354,0.14,4623.5,4618.5,2.8587]
[1755175418555,17.95778708,4623.3,4619.7,0.649027]
[1755175418756,17.95778708,4623.3,4621.0,0.001]
[1755175419005,17.95978708,4623.3,4621.2,3.0]
[1755175419170,0.002,4622.3,4621.2,3.0216394]
[1755175419361,0.002,4622.3,4621.3,1.13713394]
[1755175420071,0.002,4622.3,4621.1,7.8807]
[1755175420287,0.002,4622.3,4621.1,5.49]
[1755175420655,0.002,4622.3,4621.2,6.483]
[1755175421098,0.002,4622.3,4621.3,0.02163893]
[1755175421399,0.002,4622.3,4621.4,2.1638288]
[1755175421601,0.002,4622.3,4621.5,1.21148288]
[1755175421900,0.002,4622.3,4621.0,0.001]
[1755175422068,0.108,4621.4,4621.1,6.483]
[1755175422267,0.108,4621.1,4621.0,0.001]
[1755175422468,0.1072,4621.1,4621.0,6.484]
[1755175423303,0.108,4621.1,4621.0,12.3427]
[1755175423504,0.108,4621.1,4621.0,16.25960375]
[1755175423678,0.002,4622.3,4621.1,3.0]
[1755175423878,0.002,4622.3,4621.3,3.0]
[1755175424083,0.002,4622.3,4621.1,3.0]
[1755175424301,0.002,4622.3,4621.3,3.0]
[1755175424604,0.002,4622.3,4621.5,3.0]
[1755175424805,0.002,4622.3,4621.7,3.0]
[1755175425007,0.002,4622.3,4621.4,0.9483]
[1755175425008,0.002,4622.3,4622.2,2.16347193]
[1755175425305,0.002,4622.3,4622.2,14.70681554]
[1755175425491,0.14,4627.7,4622.3,3.0]
[1755175425678,17.95778708,4627.6,4622.4,11.09687797]
[1755175425880,0.14,4627.7,4622.5,10.15184361]
[1755175426081,0.14,4627.7,4622.7,3.0]
[1755175426295,0.00508668,4629.5,4622.4,1.55433436]
[1755175426296,17.95778708,4625.7,4622.8,6.68384361]
[1755175426494,3.41808963,4625.6,4622.8,6.483]
[1755175426709,0.34180896,4625.5,4622.8,7.1313]
[1755175427043,3.0,4625.2,4622.9,6.483]
[1755175427311,0.14,4625.6,4622.2,0.4688]
[1755175427312,0.14,4625.6,4623.0,6.483]
[1755175427478,0.14,4625.6,4623.1,6.483]
[1755175427674,0.14,4625.6,4623.2,6.483]
[1755175427874,0.14,4625.6,4623.3,6.482]
[1755175428176,0.002,4622.8,4622.3,0.23915]
[1755175428375,0.002,4622.8,4622.4,9.5629141]
[1755175428601,0.002,4622.8,4622.5,3.05928032]
[1755175428800,0.002,4622.8,4622.6,0.20058032]
[1755175429005,0.002,4622.8,4622.7,0.20058032]
[1755175429177,0.002,4622.8,4622.7,0.66846808]
[1755175429522,2.16342513,4622.3,4622.2,0.0008]
[1755175429712,0.1392,4622.3,4619.6,3.80441028]
[1755175429916,3.0,4622.2,4620.1,6.482]
[1755175430078,0.1392,4622.3,4620.1,6.482]
[1755175430274,2.16398692,4621.1,4618.9,5.186]
[1755175430502,2.16398692,4621.1,4620.3,6.482]
[1755175430700,2.16398692,4621.1,4619.1,0.649111]
[1755175430914,3.0,4622.0,4619.2,0.02164877]
[1755175431117,3.0,4622.2,4620.2,6.484]
[1755175431432,0.002,4622.8,4620.8,0.4574]
[1755175431586,0.002,4622.8,4621.1,2.8863]
[1755175431792,0.002,4622.8,4621.2,6.5056394]
[1755175431994,0.002,4622.8,4621.3,0.4574]
[1755175432230,0.002,4622.8,4621.4,6.77263]
[1755175432431,0.002,4622.8,4621.5,2.90793799]
[1755175432730,0.002,4622.8,4622.0,2.16354582]
[1755175432930,0.002,4622.8,4622.1,2.8863]
[1755175433088,0.002,4622.8,4622.1,9.3703]
[1755175433289,0.002,4622.8,4622.1,2.8863]
[1755175433636,0.002,4622.8,4622.2,6.484]
[1755175433815,0.002,4622.8,4622.1,0.4574]
[1755175434217,0.108,4622.2,4622.1,0.4574]
[1755175434559,0.108,4622.2,4622.1,6.9414]
[1755175434736,0.002,4622.8,4621.4,0.0008]
[1755175434737,2.16379963,4621.5,4621.4,0.0008]
[1755175435029,1.96118834,4621.5,4621.4,0.0008]
[1755175435807,2.1629211,4623.4,4621.4,0.0008]
[1755175436009,0.1392,4624.5,4621.4,6.483]
[1755175436223,2.1626164,4624.1,4621.4,0.6483]
[1755175436500,0.1392,4625.8,4621.5,8.09493799]
[1755175436840,17.95778708,4625.5,4621.6,2.8863]
[1755175437139,0.1392,4626.2,4621.7,6.96203705]
[1755175437349,17.95778708,4626.3,4621.8,2.8863]
[1755175437648,18.08671498,4626.3,4625.3,0.00439351]
[1755175437792,2.16194301,4625.5,4625.3,0.00439351]
[1755175437998,2.16192937,4625.5,4625.3,0.00439351]
[1755175438346,2.30317518,4625.4,4625.3,0.00439351]
[1755175438550,17.95778708,4623.9,4623.3,1e-08]
[1755175438752,0.25379517,4625.4,4623.3,1e-08]
[1755175438911,3.25379517,4625.4,4623.3,1e-08]
[1755175439105,0.1412,4625.4,4623.3,1e-08]
[1755175439311,2.16202192,4625.3,4623.3,1e-08]
[1755175439650,2.16160032,4626.3,4623.3,0.45740001]
[1755175439856,2.16174149,4625.9,4623.3,1e-08]
[1755175440150,0.1,4625.9,4623.3,1e-08]
[1755175440359,0.22616948,4625.8,4623.3,1e-08]
[1755175440543,0.102,4626.6,4623.4,2.4289]
[1755175440708,0.1412,4626.5,4623.3,1e-08]
[1755175440914,3.0,4626.3,4623.3,1e-08]
[1755175441255,2.16146114,4626.5,4623.4,2.8863]
[1755175441414,2.16160254,4626.2,4623.5,0.28863]
[1755175441611,0.21634611,4626.4,4623.6,0.4574]
[1755175441821,0.002,4626.6,4623.6,0.4574]
[1755175442023,2.16152851,4626.4,4623.6,0.4574]
[1755175442224,0.002,4626.6,4623.6,0.4574]
[1755175442451,0.002,4626.6,4623.7,2.4289]
[1755175442613,2.16196123,4625.5,4623.3,1e-08]
[1755175442811,3.05869612,4625.4,4623.3,1e-08]
[1755175443012,3.03459791,4625.3,4623.3,1e-08]
[1755175443243,0.19209791,4625.2,4623.3,1e-08]
[1755175443815,2.16212598,4625.1,4623.3,1e-08]
[1755175444044,0.4471,4625.0,4623.3,1e-08]
[1755175444348,2.3954,4625.3,4623.3,1e-08]
[1755175444563,0.30345979,4625.0,4623.3,1e-08]
[1755175444720,0.108,4623.4,4623.3,1e-08]
[1755175444910,0.108,4623.4,4623.3,2.88630001]
[1755175445352,2.16205898,4625.3,4623.3,2.88630001]
[1755175445508,0.2162059,4625.2,4623.3,2.88630001]
[1755175445711,4.55884903,4626.6,4623.4,0.4790291]
[1755175445712,0.002,4626.6,4623.4,0.4790291]
[1755175445950,0.002,4626.6,4623.5,2.4289]
[1755175446148,2.16146114,4626.5,4623.6,0.02162816]
[1755175446387,0.002,4626.6,4623.7,2.4289]
[1755175446597,0.002,4626.6,4623.8,0.4574]
[1755175446746,0.002,4626.6,4623.9,0.29079282]
[1755175447377,2.16345318,4626.6,4623.9,0.29079282]
[1755175447581,0.002,4626.6,4623.9,0.29079282]
[1755175447750,0.002,4626.6,4624.0,0.02162629]
[1755175448350,17.95778708,4624.6,4622.3,0.4574]
[1755175448680,2.16291041,4623.4,4621.6,0.4574]
[1755175448880,2.16291041,4623.4,4621.5,0.001]
[1755175449081,2.16291041,4623.4,4621.9,0.4584]
[1755175449284,6.481,4625.1,4622.8,0.4584]
[1755175449457,0.4471,4624.8,4622.8,0.001]
[1755175449661,0.02162629,4624.7,4622.8,0.001]
[1755175449866,2.16202418,4625.3,4623.2,0.4574]
[1755175450104,0.02162629,4625.2,4622.8,0.001]
[1755175450400,0.02162629,4625.3,4622.8,0.001]
[1755175450585,2.16113516,4627.2,4622.8,0.001]
[1755175450751,2.1619242,4625.6,4623.2,0.4574]
[1755175450950,1.78381855,4625.6,4623.4,0.28863]
[1755175451177,1.78381855,4625.6,4623.5,2.8863]
[1755175451376,17.95778708,4625.7,4623.5,2.8863]
[1755175451854,17.95778708,4625.8,4623.5,2.8863]
[1755175452050,2.16174775,4625.9,4623.5,2.8863]
[1755175452273,0.02162629,4626.1,4623.5,2.8863]
[1755175452471,2.16146658,4626.5,4623.6,0.4574]
[1755175452669,17.95778708,4627.3,4623.7,2.71753]
[1755175452886,0.02162629,4626.9,4623.8,0.4574]
[1755175453095,0.02162629,4626.9,4623.9,2.4289]
[1755175453290,0.02162629,4626.9,4624.0,0.4574]
[1755175453490,0.02362629,4627.0,4624.1,2.4289]
[1755175453693,0.002,4627.0,4624.2,1.41575536]
[1755175453991,0.002,4627.0,4624.4,3.0]
[1755175454193,0.002,4627.0,4624.5,5.185]
[1755175454352,0.002,4627.0,4624.6,0.4574]
[1755175454700,0.002,4627.0,4624.7,2.4289]
[1755175454901,2.16246505,4624.4,4623.7,0.648345]
[1755175455105,2.3954,4625.3,4623.1,0.4574]
[1755175455266,3.21982958,4625.2,4623.1,0.4574]
[1755175455467,0.38546746,4625.1,4621.9,0.001]
[1755175455668,0.108,4623.4,4622.3,0.4574]
[1755175455882,0.19280373,4624.8,4623.3,0.45740001]
[1755175456102,2.16208796,4625.2,4623.3,0.45740001]
[1755175456268,0.19280373,4625.4,4623.4,0.01081596]
[1755175456463,0.19280373,4625.8,4623.5,0.4574]
[1755175456769,0.02901768,4626.6,4623.6,6.48]
[1755175456971,0.02701826,4626.5,4623.7,3.58004]
[1755175457173,0.002,4626.6,4623.8,3.46820707]
[1755175457375,0.002,4626.6,4623.9,2.8863]
[1755175457603,0.002,4626.6,4624.0,3.4574]
[1755175457905,0.47611768,4626.6,4624.1,0.4574]
[1755175458108,17.95778708,4625.9,4623.3,0.45740001]
[1755175458293,7.85809614,4625.8,4623.3,0.45740001]
[1755175458614,3.0,4624.7,4623.3,1e-08]
[1755175458767,2.16291041,4623.4,4623.3,1e-08]
[1755175458967,5.00541041,4623.4,4623.3,1e-08]
[1755175459170,6.03510852,4623.4,4622.4,0.001]
[1755175459492,5.16300397,4623.2,4622.4,0.001]
[1755175459692,3.0,4623.0,4622.4,0.001]
[1755175459878,8.03268364,4622.9,4622.4,0.001]
[1755175460081,5.3954,4622.9,4622.4,0.001]
[1755175460404,3.0,4622.9,4622.4,0.001]
[1755175460612,5.3954,4622.9,4622.4,0.001]
[1755175460920,5.8425,4622.9,4622.4,0.001]
[1755175461103,12.3235,4622.9,4622.4,0.001]
[1755175461278,2.16333153,4622.5,4622.4,0.001]
[1755175461479,5.3183,4622.5,4622.4,0.001]
[1755175461677,5.7757,4622.5,4622.4,0.001]
[1755175461877,3.0,4622.5,4622.4,0.001]
[1755175462283,6.481,4623.4,4622.4,0.001]
[1755175462616,6.481,4623.9,4622.8,0.001]
[1755175462922,17.95778708,4624.3,4622.8,0.001]
[1755175463211,2.16258298,4624.1,4622.8,0.001]
[1755175463376,2.16312295,4623.0,4622.8,0.001]
[1755175463575,2.16333153,4622.5,4622.4,0.0018]
[1755175463804,13.98967317,4622.5,4622.4,0.0018]
[1755175464004,16.18758882,4622.5,4622.4,0.0018]
[1755175464419,13.56685729,4622.5,4622.4,0.0018]
[1755175464573,3.1927389,4622.5,4622.4,0.0018]
[1755175465017,8.15881207,4622.5,4622.4,0.0018]
[1755175465246,8.13177043,4622.5,4622.4,0.0018]
[1755175465949,5.5110389,4622.5,4622.4,0.0018]
[1755175466138,6.7617389,4622.5,4622.4,0.0018]
[1755175466340,0.108,4622.5,4622.4,0.0018]
[1755175467064,2.4263,4622.5,4622.4,0.0018]
[1755175467275,2.3183,4622.5,4622.4,0.0018]
[1755175467420,0.108,4622.5,4622.4,0.0018]
[1755175467870,0.55482439,4626.5,4622.4,0.0018]
[1755175467871,0.19283787,4624.2,4622.4,2.8877]
[1755175468053,0.108,4622.5,4622.4,2.4555]
[1755175468376,7.34754822,4626.4,4622.4,2.4555]
[1755175468377,0.19283787,4625.4,4622.4,2.70105]
[1755175468597,0.108,4622.5,4622.4,2.70105]
[1755175468775,0.108,4622.5,4622.4,5.86271168]
[1755175468947,0.108,4623.0,4622.4,5.86271168]
[1755175469287,0.108,4623.0,4622.6,3.0]
[1755175469469,0.19294048,4626.5,4622.8,5.16317219]
[1755175469642,0.19294048,4626.4,4622.9,2.7939]
[1755175469986,5.13431576,4626.3,4623.0,0.3695]
[1755175470189,2.16164804,4626.1,4623.0,0.3695]
[1755175470388,3.0,4625.5,4623.1,2.89671385]
[1755175470546,0.21996516,4625.4,4623.2,0.4322]
[1755175470752,0.19294048,4625.3,4623.2,0.4322]
[1755175471082,7.48032685,4625.3,4623.2,0.4322]
[1755175471283,2.16222957,4624.9,4623.2,0.4322]
[1755175471500,3.0,4624.7,4622.4,0.0018]
[1755175471643,0.02702936,4624.6,4622.4,0.0018]
[1755175471844,3.0,4624.5,4622.4,0.0018]
[1755175472148,2.16253622,4624.2,4622.4,0.0018]
[1755175472347,2.16267652,4623.9,4622.4,0.0018]
[1755175472600,3.0,4623.7,4622.4,0.0018]
[1755175472889,2.16333153,4622.5,4622.4,0.0018]
[1755175473097,0.02704164,4622.5,4622.4,0.0018]
[1755175473248,4.48141496,4623.0,4622.4,0.0018]
[1755175473455,3.0,4623.5,4622.4,0.0018]
[1755175473797,1.29710088,4623.5,4622.4,0.0018]
[1755175474082,3.0,4623.7,4622.4,0.0018]
[1755175474285,0.02703521,4623.6,4622.4,0.0018]
[1755175474464,3.02703462,4623.7,4622.4,0.0018]
[1755175474666,3.0,4623.7,4622.4,0.0018]
[1755175474843,3.96283462,4623.7,4622.4,0.0018]
[1755175475275,3.9358,4623.7,4622.4,0.0018]
[1755175475474,6.358,4623.8,4622.4,0.0018]
[1755175475646,0.02703462,4623.7,4622.4,0.0018]
[1755175475845,5.7798,4623.7,4622.4,0.0018]
[1755175476086,0.19288891,4623.6,4622.4,0.0018]
[1755175476259,2.16301432,4623.2,4622.4,0.0018]
[1755175476447,3.19288891,4623.4,4622.4,0.0018]
[1755175476652,2.16300397,4623.2,4622.4,0.0018]
[1755175476872,0.02703813,4623.1,4622.4,0.0018]
[1755175477291,2.16333153,4622.5,4622.4,0.0018]
[1755175477474,8.70283167,4622.5,4622.4,0.0018]
[1755175477674,3.0,4622.5,4622.4,0.0018]
[1755175478284,5.16333153,4622.5,4622.4,0.0018]
[1755175478486,2.16356555,4622.0,4621.9,0.001]
[1755175478789,3.0,4622.5,4621.9,0.001]
[1755175478954,5.16333862,4622.5,4621.9,0.001]
[1755175479147,1.14643386,4622.4,4621.9,0.001]
[1755175479352,2.27156555,4622.0,4621.9,0.001]
[1755175479590,7.58986555,4622.0,4621.9,0.001]
[1755175479748,8.05136555,4622.0,4621.9,0.001]
[1755175480253,2.16375281,4621.6,4621.5,0.001]